Cogmind - Beta 14 @@@ ROGUE MODE // 2025.03.26 @ 17:15:59 Player: canerib Result: Destroyed by D-53 Grenadier with Mini Grenade Launcher Performance ------------- Evolutions (1) 500 Regions Visited (4) 800 Robots Destroyed (18) 90 Value Destroyed (384) 384 Prototype IDs (2) 40 Alien Tech Used (0) 0 Bonus (0) 0 TOTAL SCORE: 1814 Bonus ------- None Cogmind --------- Core Integrity 0/400 Matter 293/300 Energy 99/100 System Corruption 0% Temperature Cool (0) Movement Core (50) Location -9/Mines Parts ------- > --- POWER (1) -------- (None) > --- PROPULSION (3) --- (None) > --- UTILITY (3) ------ (None) > --- WEAPON (2) ------- (None) > --- INVENTORY (5) ---- Aluminum Leg Mining Laser Peak State ------------ > --- POWER ------------ Light Ion Engine > --- PROPULSION ------- Flight Unit Flight Unit Flight Unit > --- UTILITY ---------- Heat Sink Small Storage Unit Propulsion Shielding > --- WEAPON ----------- Small Laser Light Assault Rifle > --- INVENTORY -------- Aluminum Leg Sensor Array Small Laser Light Assault Rifle [Rating: 9] Favorites ----------- Power Light Ion Engine Engine Light Ion Engine Propulsion Flight Unit Leg Aluminum Leg Flight Unit Flight Unit Utility Small Storage Unit Device Heat Sink Storage Small Storage Unit Protection Propulsion Shielding Weapon Light Assault Rifle Energy Gun Small Laser Ballistic Gun Light Assault Rifle Build | -11 -10 -10 -9 -9 ------- Run | Yrd Mat Min Mat Min Slots Evolved 2 | . . . 2 . Power . | . . . . . Propulsion 1 | . . . 1 . Utility 1 | . . . 1 . Weapon . | . . . . . Parts Attached 32 | 8 . 6 11 7 Power 5 | 1 . . 2 2 Engine 5 | 1 . . 2 2 Core . | . . . . . Reactor . | . . . . . Propulsion 13 | 2 . 3 5 3 Treads . | . . . . . Leg 3 | 2 . 1 . . Wheel . | . . . . . Hover . | . . . . . Flight 10 | . . 2 5 3 Utility 7 | 2 . 1 3 1 Device 4 | 1 . 1 2 . Storage 1 | 1 . . . . Processor . | . . . . . Hackware . | . . . . . Protection 2 | . . . 1 1 Artifact . | . . . . . Weapon 7 | 3 . 2 1 1 Energy Gun 3 | 2 . 1 . . Energy Cannon . | . . . . . Ballistic Gun 4 | 1 . 1 1 1 Ballistic Cannon . | . . . . . Launcher . | . . . . . Special Weapon . | . . . . . Impact Weapon . | . . . . . Slashing Weapon . | . . . . . Piercing Weapon . | . . . . . Special Melee Weapon . | . . . . . Unidentified Prototypes . | . . . . . Parts Lost 17 | . . 2 3 12 Power 3 | . . 1 1 1 Propulsion 7 | . . . 1 6 Utility 4 | . . 1 1 2 Weapon 3 | . . . . 3 Highest Loss Streak 8 | . . 1 3 8 To Critical Strikes 1 | . . 1 . . Average Slot Usage (%) 89 | . 100 88 92 73 Engine 6 | . 14 5 4 3 Leg 8 | . 28 13 . . Flight 21 | . . 14 33 32 Device 13 | . 14 12 16 10 Storage 12 | . 14 14 11 11 Protection 2 | . . . 5 3 Energy Gun 11 | . 14 14 11 6 Ballistic Gun 11 | . 14 14 11 6 Peak Build Rating 9 | 7 7 7 9 8 Average Rating 7 | 5 7 6 8 6 On Entrance 5 | . 7 7 6 7 Naked Turns 4 | . . . . 4 Heaviest Build 13 | 11 11 11 12 13 Greatest Support 20 | 20 20 20 12 12 Greatest Overweight (x) 1 | . . 1 . 1 Average Overweight (x) . | . . . . . Largest Inventory Capacity 8 | 8 8 8 8 8 Average Capacity 7 | 7 8 8 8 7 Most Carried 8 | . 2 6 8 8 Average Carried 3 | . . 4 5 6 Final Capacity 8 | 8 8 8 8 5 Final Carried 7 | . 2 6 7 2 Class Distribution -------------------- 59% | Scavenger-Mutant 40% | Mutant Dominant Class ---------------- Mutant | -10/Materials Scavenger-Mutant | -10/Mines Scavenger-Mutant | -9/Materials Scavenger-Mutant | -9/Mines Resources | -11 -10 -10 -9 -9 ----------- Run | Yrd Mat Min Mat Min Matter Collected 509 | 291 5 68 124 21 Remotely . | . . . . . Salvage Created 518 | 77 16 130 252 43 Parts 38 | 4 2 10 18 4 Haulers Intercepted . | . . . . . Recyclers Shooed . | . . . . . Parts Field Recycled . | . . . . . Retrieved Matter . | . . . . . Parts Self-Destructed . | . . . . . Prevented . | . . . . . Kills | -11 -10 -10 -9 -9 ------- Run | Yrd Mat Min Mat Min Combat Hostiles Destroyed 15 | . . 5 9 1 Guns 15 | . . 5 9 1 Classes Destroyed 7 | 2 1 2 1 1 Tunneler 1 | 1 . . . . Recycler 1 | 1 . . . . Operator 1 | . 1 . . . Swarmer 8 | . . 3 5 . Grunt 5 | . . 2 3 . Duelist 1 | . . . . 1 Sentry 1 | . . . 1 . Best Kill Streak 6 | 1 1 3 6 1 Combat Bots Only 6 | . . 3 6 1 Max Kills in Single Turn 1 | 1 1 1 1 1 Gunslinging . | . . . . . Exploded . | . . . . . Melee . | . . . . . Uniques/NPCs Destroyed . | . . . . . Combat | -11 -10 -10 -9 -9 -------- Run | Yrd Mat Min Mat Min Hostile Shots Fired 120 | . . 31 55 34 Missed 34 | . . 9 16 9 Damage Taken 1278 | . . 239 385 654 Core 477 | . . 76 77 324 Absorbed by Shields . | . . . . . Redirected to Shielding 51 | . . . 17 34 Core Remaining (%) 84 | 100 . 69 . . Volleys Fired 77 | 11 5 15 27 19 Largest 2 | 2 2 2 2 2 Hottest 60 | 60 60 60 60 60 Shots Fired 139 | 22 10 30 54 23 Gun 139 | 22 10 30 54 23 Cannon . | . . . . . Launcher . | . . . . . Special . | . . . . . Kinetic 70 | 11 5 15 27 12 Thermal 69 | 11 5 15 27 11 Explosive . | . . . . . Electromagnetic . | . . . . . Robot Hit Streak 11 | 7 5 6 11 5 Robot Miss Streak 3 | 1 3 2 3 2 Penetration Max . | . . . . . Secondary Targets 4 | . . 2 2 . Max Gunslinging Chain 1 | . . 1 1 . Shots Hit Robots 83 | 17 5 19 29 13 Core Hits 36 | 3 3 10 16 4 Critical Kills . | . . . . . Critical Parts Destroyed . | . . . . . Critical Strikes . | . . . . . Melee Attacks . | . . . . . Impact . | . . . . . Slashing . | . . . . . Piercing . | . . . . . Sneak Attacks . | . . . . . Combat Hostiles . | . . . . . Follow-up Attacks . | . . . . . Damage Inflicted 836 | 163 53 182 318 120 Guns 836 | 163 53 182 318 120 Cannons . | . . . . . Explosions . | . . . . . Melee . | . . . . . Ramming . | . . . . . Kinetic 325 | 54 18 63 126 64 Thermal 511 | 109 35 119 192 56 Explosive . | . . . . . Electromagnetic . | . . . . . Impact . | . . . . . Slashing . | . . . . . Piercing . | . . . . . Highest Corruption . | . . . . . Average Corruption . | . . . . . Corruption Purged . | . . . . . Corruption Blocked . | . . . . . Overload Shots . | . . . . . Overflow Damage . | . . . . . Projectiles . | . . . . . Explosions . | . . . . . Melee . | . . . . . Knockbacks . | . . . . . Impact . | . . . . . Kinetic . | . . . . . Secondary . | . . . . . Self-Inflicted Damage . | . . . . . Shots . | . . . . . Rammed . | . . . . . Targets Rammed . | . . . . . Kicked . | . . . . . Crushed . | . . . . . Highest Temperature 151 | 60 20 151 14 13 Average Temperature 39 | 26 15 78 4 8 Received Heat Transfer 204 | . . 111 81 12 Siege Activations . | . . . . . Robots Corrupted . | . . . . . Combat Hostiles . | . . . . . Parts Fried . | . . . . . Impact Corruptions . | . . . . . Robots Melted . | . . . . . Combat Hostiles . | . . . . . Parts Melted 2 | . . 1 . 1 Heat Transferred 1150 | 250 75 275 425 125 Parts Sabotaged . | . . . . . Parts Stolen . | . . . . . Parts Stripped . | . . . . . Power Chain Reactions . | . . . . . Alert | -11 -10 -10 -9 -9 ------- Run | Yrd Mat Min Mat Min Peak Influence 220 | 10 33 142 220 156 Initial 81 | . 6 12 55 81 Average 73 | 4 30 105 90 90 Maximum Alert Level 1 | . . . 1 . Low Security (%) 97 | 100 100 100 90 100 Level 1 2 | . . . 9 . Level 2 . | . . . . . Level 3 . | . . . . . Level 4 . | . . . . . Level 5 . | . . . . . High Security . | . . . . . Max Security . | . . . . . Squads Dispatched 2 | . 1 . 1 . Investigation 1 | . 1 . . . Extermination . | . . . . . Reinforcement 1 | . . . 1 . Assault . | . . . . . Garrison . | . . . . . Intercept . | . . . . . Searches Triggered . | . . . . . Construction Impeded . | . . . . . Haulers Reinforced . | . . . . . Active Scanning Responses . | . . . . . Cargo Convoy Interrupts . | . . . . . Stealth | -11 -10 -10 -9 -9 --------- Run | Yrd Mat Min Mat Min Distress Signals 3 | . . . 3 . Communications Jammed . | . . . . . Distress Signals . | . . . . . Times Spotted 39 | . 3 5 21 10 Peak Tracking Total 9 | . 2 3 9 4 Tactical Retreats 3 | . . . . 3 Traps | -11 -10 -10 -9 -9 ------- Run | Yrd Mat Min Mat Min Traps Triggered . | . . . . . Indirectly . | . . . . . Trap Hack Attempts . | . . . . . Triggered . | . . . . . Disarmed . | . . . . . Reprogrammed . | . . . . . Reused . | . . . . . Traps Extracted . | . . . . . Installed 1 | . . . . 1 Triggered . | . . . . . Machines | -11 -10 -10 -9 -9 ---------- Run | Yrd Mat Min Mat Min Machines Disabled . | . . . . . Max in Single Turn . | . . . . . Machines Repaired . | . . . . . Machines Dismantled . | . . . . . Machines Sabotaged . | . . . . . Overloaded Fab Kills . | . . . . . Hacking | -11 -10 -10 -9 -9 --------- Run | Yrd Mat Min Mat Min Machines Accessed 6 | . 3 . 2 1 Terminals 6 | . 3 . 2 1 Fabricators . | . . . . . Repair Stations . | . . . . . Recycling Units . | . . . . . Scanalyzers . | . . . . . Garrison Access . | . . . . . Total Hacks 19 | . 12 . 3 4 Successful 6 | . 3 . 2 1 Failed 13 | . 9 . 1 3 Catastrophic 2 | . 2 . . . Database Lockouts . | . . . . . Manual 8 | . 3 . 2 3 Terminals 19 | . 12 . 3 4 Fabricators . | . . . . . Repair Stations . | . . . . . Recycling Units . | . . . . . Scanalyzers . | . . . . . Garrison Access . | . . . . . Terminal Hacks 5 | . 3 . 1 1 Prototype ID Bank 1 | . 1 . . . Branch Access Points 1 | . 1 . . . Alert Level 1 | . 1 . . . Unreport Threat 1 | . . . 1 . Zone Layout 1 | . . . . 1 Fabricator Hacks . | . . . . . Repair Station Hacks . | . . . . . Recycling Unit Hacks . | . . . . . Scanalyzer . | . . . . . Garrison Access Hacks . | . . . . . Unauthorized Hacks 1 | . . . 1 . Terminals 1 | . . . 1 . Botnet 1 | . . . 1 . Fabricators . | . . . . . Repair Stations . | . . . . . Recycling Units . | . . . . . Scanalyzers . | . . . . . Garrison Access . | . . . . . Data Cores Recovered 1 | . 1 . . . Used . | . . . . . Hacking Detections 6 | . 3 . 2 1 Full Trace Events 1 | . 1 . . . Feedback Events . | . . . . . Feedback Blocked . | . . . . . Robot Schematics Acquired . | . . . . . Robots Built . | . . . . . Authchips . | . . . . . Time . | . . . . . Total Robot Build Rating . | . . . . . Part Schematics Acquired . | . . . . . Parts Built . | . . . . . Authchips . | . . . . . Time . | . . . . . Total Part Build Rating . | . . . . . Parts Repaired . | . . . . . Time . | . . . . . Parts Recycled . | . . . . . Recycled Matter . | . . . . . Retrieved Matter . | . . . . . Retrieved Components . | . . . . . Parts Scanalyzed . | . . . . . Part Schematics Acquired . | . . . . . Parts Damaged . | . . . . . Bothacking | -11 -10 -10 -9 -9 ------------ Run | Yrd Mat Min Mat Min Used RIF Installer . | . . . . . Robots Hacked . | . . . . . Non-combat . | . . . . . Combat . | . . . . . Robot Hacks Applied . | . . . . . Relay Couplers Released . | . . . . . Fabnet Peak Effective % . | . . . . . Robots Rewired . | . . . . . Allies Hacked . | . . . . . Hacks Repelled . | . . . . . Allies | -11 -10 -10 -9 -9 -------- Run | Yrd Mat Min Mat Min Total Allies 1 | . . . . 1 Largest Group 1 | . . . . 1 Highest-Rated Group 31 | . . . . 31 Highest-Rated Ally 31 | . . . . 31 Total Orders . | . . . . . Ally Attacks 3 | . . . . 3 Total Damage 40 | . . . . 40 Kills . | . . . . . Allies Corrupted . | . . . . . Allies Melted . | . . . . . Intel | -11 -10 -10 -9 -9 ------- Run | Yrd Mat Min Mat Min Robot Analysis Total . | . . . . . Derelict Logs Recovered 1 | . . . . 1 Drone Launches . | . . . . . Drone Recoveries . | . . . . . Exploration | -11 -10 -10 -9 -9 ------------- Run | Yrd Mat Min Mat Min Turns Passed 837 | 91 148 173 265 160 Spaces Moved 756 | 41 111 133 197 274 Core 11 | 4 . . . 7 Treads . | . . . . . Legs 183 | 37 111 35 . . Wheels . | . . . . . Hover . | . . . . . Flight 562 | . . 98 197 267 Fastest Speed 34 | 50 120 37 34 34 Average Speed 55 | 113 120 60 34 35 Slowest Speed 120 | 120 120 120 34 114 Overloaded Moves . | . . . . . Propulsion Burnouts . | . . . . . Robots Hopped 10 | . . 1 2 7 Cave-ins Triggered . | . . . . . Exploration Rate (%) 26 | 4 19 24 23 60 Regions Visited 4 Branch Regions 2 Pre-discovered Areas . | . . . . . Known Exits Taken 1 | . 1 . . . Unknown Exits Taken 3 | 1 . 1 1 . Scrap Searched 3 | . . 2 . 1 Spaces Dug . | . . . . . Terrain Destroyed . | . . . . . Melee . | . . . . . Projectile . | . . . . . AOE . | . . . . . Terrain Rammed . | . . . . . Walls Destroyed . | . . . . . Machines Disabled . | . . . . . Actions | -11 -10 -10 -9 -9 --------- Run | Yrd Mat Min Mat Min Total 1025 | 62 117 195 341 310 Wait 158 | 2 . 40 103 13 Move 732 | 40 110 130 192 260 Hop 10 | . . 1 2 7 Pick Up 6 | . 2 1 2 1 Fast Attach 14 | 8 . 3 2 1 Attach 8 | . . . 3 5 Detach 1 | . . . 1 . Swap 10 | . . 3 6 1 Drop 8 | 1 . 2 3 2 Fire 77 | 11 5 15 27 19 Melee . | . . . . . Ram . | . . . . . Kick . | . . . . . Crush . | . . . . . Escape Stasis . | . . . . . Rewire . | . . . . . Trap 1 | . . . . 1 Miscellaneous . | . . . . . Route ------- -11/Scrapyard -10/Materials (discovered 2 exits: *Min x2) -10/Mines -9/Materials (discovered 2 exits: *Min x2) -9/Mines (discovered 1 exit: [*Mat]) History --------- Turn | Location | Event 6 | -11/Scrapyard | Discovered new exit (range 15) 92 | -11/Scrapyard | Entered Materials 101 | -10/Materials | Identified exit to Mines 240 | -10/Materials | Entered Mines 316 | -10/Mines | Build established: Mutant 404 | -10/Mines | Discovered new exit (range 8) 413 | -10/Mines | Entered Materials 413 | -9/Materials | Evolved 2 slots: Propulsion x1, Utility x1 644 | -9/Materials | Build established: Scavenger-Mutant 656 | -9/Materials | Discovered new exit (range 13) 673 | -9/Materials | Discovered new exit (range 15) 678 | -9/Materials | Entered Mines 700 | -9/Mines | Discovered new exit (range 3) 703 | -9/Mines | Received a Mining Laser from a helpful Derelict 707 | -9/Mines | Lost 3 parts (1p1n1u) 797 | -9/Mines | Found a hidden stash of uninstalled traps 811 | -9/Mines | Learned Materials garrison access intel 821 | -9/Mines | Assembled infested the area 826 | -9/Mines | Lost 4 parts (1n3w) 835 | -9/Mines | Core integrity fell below 50% 837 | -9/Mines | Core integrity fell below 20% 838 | -9/Mines | Destroyed by D-53 Grenadier with Mini Grenade Launcher Last Messages --------------- dispatching Demolisher response squad. 00822_ Searching scrap... 00822_ Found Maul. 00822_ Found Disposable Heat Sink. 00822_ Found Med. Armor Plating. 00822_ Found 66 Matter. 00828_ Sensor Array destroyed. 00830_ C-30 ARC bursts open, deploying its payload. 00830_ D-53 Grenadier unfolds itself. 00830_ Flight Unit destroyed. 00832_ Propulsion Shielding destroyed. 00832_ Flight Unit destroyed. 00832_ Ion Engine destroyed. 00832_ Flight Unit destroyed. 00832_ Dropped Sml. Storage Unit. 00833_ K-01 Serf collects debris. 00834_ Flight Unit destroyed. 00834_ K-01 Serf destroyed. 00838_ The unstable cave ceiling collapses. Map ----- +----------------------------------------------------+ | ?????????????????????????????????????????????????? | | ??????????????????????????###????????????????????? | | ????????????????????????### #####???????????????? | | ???????????????????????## #####?##########? | | ???????????????????????# #?# #? | | ???????????????????????# #?# #? | | ???????????????????????# ## ### #? | | ??????????????????????## ### """#? | | ?????????????????????## ##### # """#? | | ????????????????????## #### # """#? | | ???????????????????## # #? | | ???????????????????# ####### #? | | ???????????????????# ##?????#######T##? | | ???????????????????# ##????????????###?? | | ???????????????????# #??####???????????? | | ???????????????????## #### ####????????? | | ????????????????????## ## #####????? | | ?????????????????????## ##???? | | ???????????########???## ## #???? | | ???????????# #????###?# ##??? | | ?????###???# #????????# ## #??? | | ????## ##?# #???##### ##### #??? | | ????# ### < #??## ###???## ##??? | | ????# ##? ?### ##??????### ##???? | | ?????# #### #### #?????????#######????? | | ??????# @ #????????????????????? | | ??????## #????????????????????? | | ???????## # ### #????????????????????? | | ????????# # ### ###????????????????????? | | ????????# ## #??????????????????????? | | ????????# ## ##??????????????????????? | | ????????######## * # ###?????????????????????? | | ???????????????## d #?????????????????????? | | ???????????????## %d # #?????????????????????? | | ???????????????# # ##############????????? | | ??????????????## # #????????? | | ??????????##### ############### #????????? | | ?????????## # ! ##?????????????#=#????????? | | ?????????# #??????????????#%#????????? | | ????????## #??????????????#=#####????? | | ????????# #??????????????#[%!=/#????? | | ????????# ###??????????????####*!#????? | | ????????# #?????????????????### ##???? | | ????????## #????????????????## ##??? | | ????####?#### ##????????????????# """ ##?? | | ???## ##???## ####?????????????##### """ #?? | | ???# ##??## ##????????????????# """ #?? | | ???# ##?# #?????????????????# #### ##?? | | #### ### ##?????????????????# #??### ##??? | | % #?????????????##???# #????#####???? | +----------------------------------------------------+ Best States ------------- Heat Dissipation 38 Energy Generation 10 Energy Capacity 250 Matter Stores 300 Matter Capacity 300 Sight Range 16 Robot Scan Range 14 Terrain Scan Density 10 Propulsion Shielding 33 Evasion (%) 63 Item Schematics ----------------- None Robot Schematics ------------------ None Fabricated ------------ Nothing Alien Tech Used ----------------- None Achievements -------------- None Challenges ------------ None Game ------ Seed EfficiencyCloakingBuckler Manual? 0 Play Time 00:14:12 Cumulative 83.3 hours Start 2025.03.26 @ 17:04:48 End 2025.03.26 @ 17:15:59 Sessions 1 Manual Loads 0 Difficulty Rogue Special Mode None Game No. 128 Rogue 128 Adventurer 0 Explorer 0 Win Type - Total 1 Types 1/0/0/0/0/0/0/0/0 Lore% 31 Gallery% 47 Achievement% 40 Wizard Run 0 Options --------- Layout 1 ASCII 1 Keyboard 0 Movement Numpad Keybinds 0 Fullscreen 1 Font 24/Smallcaps Map View 50x35 Zoom Use 0% Tactical HUD 1 Map Filters NONE Filters NONE Steam 1 RUN: 0aafaf40-8711-4a21-a74d-f25a79e0904c